[Event "Titled Tuesday Blitz October 11 Late 2022"]
[White "Ballester Llagaria, Luis Eduardo"]
[Black "Gilmanov, Mansur"]
[WhiteFideId "2297620"]
[BlackFideId "4166868"]
[WhiteElo "2504"]
[BlackElo "2588"]
[Result "0-1"]
[Round "07"]
[TimeControl "180+1"]
[Date "2022.10.12"]
[WhiteClock "0:00:04"]
[BlackClock "0:00:14"]

1. e4 {[%clk 0:03:00]}  d5 {[%clk 0:03:00]} 2. exd5 {[%clk 0:02:59]}  Qxd5 {[%clk 0:03:01]} 3. Nc3 {[%clk 0:02:59]}  Qe5+ {[%clk 0:03:01]} 4. Be2 {[%clk 0:02:59]}  Bg4 {[%clk 0:03:02]} 5. d4 {[%clk 0:02:58]}  Bxe2 {[%clk 0:03:02]} 6. Ngxe2 {[%clk 0:02:58]}  Qa5 {[%clk 0:03:03]} 7. a3 {[%clk 0:02:43]}  Nf6 {[%clk 0:03:03]} 8. b4 {[%clk 0:02:43]}  Qh5 {[%clk 0:03:04]} 9. Bf4 {[%clk 0:02:34]}  c6 {[%clk 0:02:57]} 10. O-O {[%clk 0:02:16]}  e6 {[%clk 0:02:56]} 11. Qd3 {[%clk 0:02:11]}  Be7 {[%clk 0:02:50]} 12. Ng3 {[%clk 0:01:58]}  Qg6 {[%clk 0:02:49]} 13. Qxg6 {[%clk 0:01:46]}  hxg6 {[%clk 0:02:50]} 14. Be5 {[%clk 0:01:45]}  Nbd7 {[%clk 0:02:48]} 15. Nce4 {[%clk 0:01:44]}  Nxe5 {[%clk 0:02:33]} 16. dxe5 {[%clk 0:01:42]}  Ng4 {[%clk 0:02:34]} 17. f4 {[%clk 0:01:31]}  Nxh2 {[%clk 0:02:25]} 18. Rfd1 {[%clk 0:01:29]}  Ng4 {[%clk 0:02:21]} 19. Nd6+ {[%clk 0:01:27]}  Bxd6 {[%clk 0:02:17]} 20. Rxd6 {[%clk 0:01:28]}  Ke7 {[%clk 0:02:12]} 21. Ne4 {[%clk 0:01:17]}  Ne3 {[%clk 0:01:58]} 22. Nc5 {[%clk 0:01:03]}  b6 {[%clk 0:01:50]} 23. Ne4 {[%clk 0:01:00]}  Rhd8 {[%clk 0:01:26]} 24. Rxc6 {[%clk 0:00:56]}  Rac8 {[%clk 0:01:21]} 25. b5 {[%clk 0:00:42]}  Rxc6 {[%clk 0:01:19]} 26. bxc6 {[%clk 0:00:42]}  Rc8 {[%clk 0:01:19]} 27. Kf2 {[%clk 0:00:18]}  Nd5 {[%clk 0:01:14]} 28. c4 {[%clk 0:00:16]}  Nxf4 {[%clk 0:01:14]} 29. c5 {[%clk 0:00:14]}  Nd3+ {[%clk 0:01:06]} 30. Ke3 {[%clk 0:00:14]}  Nxc5 {[%clk 0:01:06]} 31. Nd6 {[%clk 0:00:12]}  Rxc6 {[%clk 0:01:04]} 32. Rc1 {[%clk 0:00:13]}  f6 {[%clk 0:01:00]} 33. Nb5 {[%clk 0:00:08]}  a6 {[%clk 0:00:49]} 34. Nd4 {[%clk 0:00:08]}  Rc7 {[%clk 0:00:46]} 35. Nf3 {[%clk 0:00:09]}  Rd7 {[%clk 0:00:41]} 36. g4 {[%clk 0:00:09]}  Rd3+ {[%clk 0:00:38]} 37. Ke2 {[%clk 0:00:10]}  Rxa3 {[%clk 0:00:38]} 38. g5 {[%clk 0:00:11]}  Ra2+ {[%clk 0:00:36]} 39. Kf1 {[%clk 0:00:09]}  f5 {[%clk 0:00:32]} 40. Nd4 {[%clk 0:00:09]}  Ra4 {[%clk 0:00:25]} 41. Nb3 {[%clk 0:00:09]}  Nxb3 {[%clk 0:00:24]} 42. Rc7+ {[%clk 0:00:10]}  Kf8 {[%clk 0:00:23]} 43. Rc8+ {[%clk 0:00:10]}  Kf7 {[%clk 0:00:24]} 44. Rc7+ {[%clk 0:00:08]}  Kg8 {[%clk 0:00:24]} 45. Kg2 {[%clk 0:00:09]}  Re4 {[%clk 0:00:20]} 46. Kh3 {[%clk 0:00:09]}  Rxe5 {[%clk 0:00:20]} 47. Kh4 {[%clk 0:00:10]}  Re4+ {[%clk 0:00:20]} 48. Kh3 {[%clk 0:00:10]}  Nc5 {[%clk 0:00:20]} 49. Rc8+ {[%clk 0:00:10]}  Kh7 {[%clk 0:00:19]} 50. Kg3 {[%clk 0:00:11]}  Rg4+ {[%clk 0:00:19]} 51. Kh3 {[%clk 0:00:12]}  Rxg5 {[%clk 0:00:19]} 52. Kh4 {[%clk 0:00:12]}  Rg4+ {[%clk 0:00:20]} 53. Kh3 {[%clk 0:00:13]}  e5 {[%clk 0:00:20]} 54. Kh2 {[%clk 0:00:14]}  e4 {[%clk 0:00:21]} 55. Kh3 {[%clk 0:00:14]}  e3 {[%clk 0:00:21]} 56. Re8 {[%clk 0:00:12]}  Ne4 {[%clk 0:00:22]} 57. Rc8 {[%clk 0:00:11]}  b5 {[%clk 0:00:17]} 58. Rc1 {[%clk 0:00:10]}  b4 {[%clk 0:00:17]} 59. Rb1 {[%clk 0:00:11]}  a5 {[%clk 0:00:18]} 60. Rc1 {[%clk 0:00:10]}  a4 {[%clk 0:00:17]} 61. Kh2 {[%clk 0:00:11]}  b3 {[%clk 0:00:18]} 62. Kh3 {[%clk 0:00:12]}  a3 {[%clk 0:00:18]} 63. Rb1 {[%clk 0:00:11]}  b2 {[%clk 0:00:18]} 64. Rd1 {[%clk 0:00:09]}  e2 {[%clk 0:00:18]} 65. Rd8 {[%clk 0:00:04]}  e1=Q {[%clk 0:00:14]} 0-1


[Site "https://www.chess.com"]

[Event "Titled Tuesday Blitz October 11 Late 2022"]
[White "Baltaci, Ismail Tarik"]
[Black "Reprintsev, Alexander"]
[WhiteFideId "6365213"]
[BlackFideId "14100541"]
[WhiteElo "2349"]
[BlackElo "2230"]
[Result "1-0"]
[Round "07"]
[TimeControl "180+1"]
[Date "2022.10.12"]
[WhiteClock "0:00:34"]
[BlackClock "0:00:13"]

1. e4 {[%clk 0:02:59]}  d5 {[%clk 0:02:53]} 2. exd5 {[%clk 0:02:59]}  Qxd5 {[%clk 0:02:53]} 3. Nc3 {[%clk 0:02:59]}  Qa5 {[%clk 0:02:53]} 4. d4 {[%clk 0:02:59]}  Nf6 {[%clk 0:02:52]} 5. Nf3 {[%clk 0:03:00]}  Nc6 {[%clk 0:02:51]} 6. d5 {[%clk 0:02:59]}  Nb4 {[%clk 0:02:51]} 7. Bb5+ {[%clk 0:02:54]}  Bd7 {[%clk 0:02:51]} 8. Bxd7+ {[%clk 0:02:53]}  Nxd7 {[%clk 0:02:51]} 9. a3 {[%clk 0:02:51]}  Nf6 {[%clk 0:02:51]} 10. O-O {[%clk 0:02:29]}  Nbxd5 {[%clk 0:02:49]} 11. Bd2 {[%clk 0:02:28]}  e6 {[%clk 0:02:43]} 12. Re1 {[%clk 0:02:11]}  O-O-O {[%clk 0:02:35]} 13. Qe2 {[%clk 0:01:59]}  Nxc3 {[%clk 0:02:28]} 14. Bxc3 {[%clk 0:01:58]}  Qa6 {[%clk 0:02:16]} 15. Qxa6 {[%clk 0:01:55]}  bxa6 {[%clk 0:02:16]} 16. Ne5 {[%clk 0:01:55]}  Rg8 {[%clk 0:02:12]} 17. Nxf7 {[%clk 0:01:54]}  Re8 {[%clk 0:02:12]} 18. Ng5 {[%clk 0:01:52]}  Nd5 {[%clk 0:02:07]} 19. Bd4 {[%clk 0:01:45]}  c5 {[%clk 0:02:01]} 20. Be5 {[%clk 0:01:39]}  h6 {[%clk 0:02:01]} 21. Ne4 {[%clk 0:01:37]}  Rd8 {[%clk 0:01:52]} 22. Rad1 {[%clk 0:01:29]}  Be7 {[%clk 0:01:50]} 23. c4 {[%clk 0:01:24]}  Nb6 {[%clk 0:01:49]} 24. b3 {[%clk 0:01:24]}  g5 {[%clk 0:01:25]} 25. a4 {[%clk 0:01:16]}  Nd7 {[%clk 0:01:07]} 26. Bd6 {[%clk 0:01:14]}  Rge8 {[%clk 0:01:01]} 27. Bxe7 {[%clk 0:01:08]}  Rxe7 {[%clk 0:01:00]} 28. Nd6+ {[%clk 0:01:08]}  Kc7 {[%clk 0:00:58]} 29. Nf5 {[%clk 0:01:09]}  Ree8 {[%clk 0:00:54]} 30. Ng7 {[%clk 0:01:07]}  e5 {[%clk 0:00:49]} 31. Nxe8+ {[%clk 0:01:04]}  Rxe8 {[%clk 0:00:49]} 32. Rd5 {[%clk 0:01:04]}  Re6 {[%clk 0:00:48]} 33. f3 {[%clk 0:01:04]}  Kc6 {[%clk 0:00:47]} 34. Kf2 {[%clk 0:01:03]}  a5 {[%clk 0:00:43]} 35. g4 {[%clk 0:01:02]}  Re7 {[%clk 0:00:38]} 36. Kg3 {[%clk 0:01:02]}  Re8 {[%clk 0:00:37]} 37. h4 {[%clk 0:01:02]}  Rb8 {[%clk 0:00:36]} 38. Red1 {[%clk 0:00:59]}  Nf8 {[%clk 0:00:28]} 39. R1d3 {[%clk 0:00:58]}  Re8 {[%clk 0:00:24]} 40. hxg5 {[%clk 0:00:57]}  hxg5 {[%clk 0:00:24]} 41. Rd6+ {[%clk 0:00:53]}  Kc7 {[%clk 0:00:24]} 42. R3d5 {[%clk 0:00:53]}  e4 {[%clk 0:00:21]} 43. fxe4 {[%clk 0:00:53]}  Rxe4 {[%clk 0:00:21]} 44. Ra6 {[%clk 0:00:49]}  Ne6 {[%clk 0:00:20]} 45. Rxa7+ {[%clk 0:00:46]}  Kc6 {[%clk 0:00:15]} 46. Rxa5 {[%clk 0:00:45]}  Re3+ {[%clk 0:00:13]} 47. Kf2 {[%clk 0:00:45]}  Rxb3 {[%clk 0:00:13]} 48. Ra6+ {[%clk 0:00:42]}  Rb6 {[%clk 0:00:12]} 49. Rxb6+ {[%clk 0:00:34]}  Kxb6 {[%clk 0:00:13]} 50. Rd6+ {[%clk 0:00:34]} 1-0


[Site "https://www.chess.com"]

[Event "Titled Tuesday Blitz October 11 Late 2022"]
[White "Boros, Denes"]
[Black "Rasulov, Vugar"]
[WhiteFideId "722340"]
[BlackFideId "13402390"]
[WhiteElo "2464"]
[BlackElo "2509"]
[Result "0-1"]
[Round "07"]
[TimeControl "180+1"]
[Date "2022.10.11"]
[WhiteClock "0:00:14"]
[BlackClock "0:00:36"]

1. Nf3 {[%clk 0:03:00]}  d5 {[%clk 0:02:59]} 2. b3 {[%clk 0:03:00]}  Nf6 {[%clk 0:02:59]} 3. Bb2 {[%clk 0:03:01]}  c5 {[%clk 0:02:59]} 4. e3 {[%clk 0:03:01]}  a6 {[%clk 0:02:59]} 5. c4 {[%clk 0:02:59]}  Nc6 {[%clk 0:02:56]} 6. cxd5 {[%clk 0:02:58]}  Nxd5 {[%clk 0:02:57]} 7. a3 {[%clk 0:02:55]}  f6 {[%clk 0:02:55]} 8. Nc3 {[%clk 0:02:55]}  Nxc3 {[%clk 0:02:51]} 9. dxc3 {[%clk 0:02:50]}  Qc7 {[%clk 0:02:49]} 10. b4 {[%clk 0:02:40]}  e5 {[%clk 0:02:49]} 11. Qb3 {[%clk 0:02:36]}  b5 {[%clk 0:02:45]} 12. bxc5 {[%clk 0:02:36]}  Bxc5 {[%clk 0:02:46]} 13. Bd3 {[%clk 0:02:28]}  Na5 {[%clk 0:02:37]} 14. Qc2 {[%clk 0:02:27]}  Nc4 {[%clk 0:02:26]} 15. a4 {[%clk 0:02:21]}  Rb8 {[%clk 0:02:12]} 16. axb5 {[%clk 0:02:17]}  axb5 {[%clk 0:02:13]} 17. Bc1 {[%clk 0:01:57]}  g6 {[%clk 0:02:01]} 18. Nd2 {[%clk 0:01:50]}  Be6 {[%clk 0:01:54]} 19. Ra6 {[%clk 0:01:46]}  Qd7 {[%clk 0:01:35]} 20. Bxg6+ {[%clk 0:01:19]}  hxg6 {[%clk 0:01:23]} 21. Qxg6+ {[%clk 0:01:20]}  Bf7 {[%clk 0:01:23]} 22. Qxf6 {[%clk 0:01:20]}  Rh5 {[%clk 0:01:11]} 23. Ne4 {[%clk 0:01:07]}  Be7 {[%clk 0:01:08]} 24. Qf3 {[%clk 0:00:56]}  Qf5 {[%clk 0:00:57]} 25. Qxf5 {[%clk 0:00:43]}  Rxf5 {[%clk 0:00:58]} 26. g4 {[%clk 0:00:37]}  Rf3 {[%clk 0:00:55]} 27. Ke2 {[%clk 0:00:35]}  Rh3 {[%clk 0:00:55]} 28. Nf6+ {[%clk 0:00:36]}  Bxf6 {[%clk 0:00:53]} 29. Rxf6 {[%clk 0:00:37]}  Ra8 {[%clk 0:00:49]} 30. g5 {[%clk 0:00:32]}  Ra2+ {[%clk 0:00:47]} 31. Kd3 {[%clk 0:00:31]}  Ke7 {[%clk 0:00:45]} 32. f3 {[%clk 0:00:29]}  Bd5 {[%clk 0:00:36]} 33. e4 {[%clk 0:00:25]}  Be6 {[%clk 0:00:37]} 34. Be3 {[%clk 0:00:20]}  Rhxh2 {[%clk 0:00:36]} 35. Rxh2 {[%clk 0:00:17]}  Rxh2 {[%clk 0:00:37]} 36. Bc5+ {[%clk 0:00:16]}  Kd7 {[%clk 0:00:37]} 37. g6 {[%clk 0:00:14]}  Rd2# {[%clk 0:00:36]} 0-1


[Site "https://www.chess.com"]

[Event "Titled Tuesday Blitz October 11 Late 2022"]
[White "Bortnyk, Olexandr"]
[Black "Fernandez De La Vara, Arnaldo"]
[WhiteFideId "14120828"]
[BlackFideId "3518388"]
[WhiteElo "2723"]
[BlackElo "2387"]
[Result "1-0"]
[Round "07"]
[TimeControl "180+1"]
[Date "2022.10.11"]
[WhiteClock "0:01:13"]
[BlackClock "0:00:05"]

1. d4 {[%clk 0:03:00]}  c5 {[%clk 0:03:00]} 2. Nc3 {[%clk 0:03:01]}  cxd4 {[%clk 0:03:00]} 3. Qxd4 {[%clk 0:03:01]}  Nc6 {[%clk 0:03:00]} 4. Qa4 {[%clk 0:03:01]}  g6 {[%clk 0:03:00]} 5. e4 {[%clk 0:03:01]}  Bg7 {[%clk 0:03:00]} 6. Nf3 {[%clk 0:03:01]}  Nf6 {[%clk 0:03:00]} 7. e5 {[%clk 0:03:01]}  Ng8 {[%clk 0:02:53]} 8. Bf4 {[%clk 0:03:01]}  f6 {[%clk 0:02:38]} 9. e6 {[%clk 0:02:40]}  dxe6 {[%clk 0:02:15]} 10. Rd1 {[%clk 0:02:39]}  Qb6 {[%clk 0:02:09]} 11. Nb5 {[%clk 0:02:32]}  e5 {[%clk 0:02:06]} 12. Be3 {[%clk 0:02:32]}  Qa5+ {[%clk 0:01:51]} 13. Qxa5 {[%clk 0:02:30]}  Nxa5 {[%clk 0:01:52]} 14. Nc7+ {[%clk 0:02:31]}  Kf7 {[%clk 0:01:53]} 15. Nxa8 {[%clk 0:02:32]}  Nh6 {[%clk 0:01:45]} 16. Nc7 {[%clk 0:02:25]}  a6 {[%clk 0:01:42]} 17. b4 {[%clk 0:02:25]}  Nc6 {[%clk 0:01:42]} 18. Bc4+ {[%clk 0:02:25]}  e6 {[%clk 0:01:41]} 19. b5 {[%clk 0:02:25]}  Na5 {[%clk 0:01:24]} 20. Be2 {[%clk 0:02:22]}  Nf5 {[%clk 0:01:24]} 21. Bb6 {[%clk 0:02:21]}  e4 {[%clk 0:01:18]} 22. Nd2 {[%clk 0:02:12]}  e3 {[%clk 0:01:18]} 23. fxe3 {[%clk 0:02:12]}  axb5 {[%clk 0:01:16]} 24. Bxa5 {[%clk 0:02:11]}  Nxe3 {[%clk 0:01:17]} 25. Rc1 {[%clk 0:02:07]}  Nxg2+ {[%clk 0:01:18]} 26. Kf2 {[%clk 0:02:07]}  Nf4 {[%clk 0:01:18]} 27. Bxb5 {[%clk 0:02:07]}  Bf8 {[%clk 0:01:02]} 28. Bb6 {[%clk 0:02:02]}  Bb4 {[%clk 0:00:53]} 29. Ne4 {[%clk 0:02:02]}  f5 {[%clk 0:00:47]} 30. Ng5+ {[%clk 0:01:59]}  Kf6 {[%clk 0:00:47]} 31. Ngxe6 {[%clk 0:01:38]}  Nxe6 {[%clk 0:00:38]} 32. Nxe6 {[%clk 0:01:37]}  Kxe6 {[%clk 0:00:38]} 33. c3 {[%clk 0:01:37]}  Ba3 {[%clk 0:00:25]} 34. Rhe1+ {[%clk 0:01:36]}  Kf7 {[%clk 0:00:24]} 35. Rcd1 {[%clk 0:01:35]}  Be6 {[%clk 0:00:23]} 36. Bc4 {[%clk 0:01:16]}  Bxc4 {[%clk 0:00:21]} 37. Rd7+ {[%clk 0:01:16]}  Be7 {[%clk 0:00:05]} 38. Rexe7+ {[%clk 0:01:13]} 1-0


[Site "https://www.chess.com"]

[Event "Titled Tuesday Blitz October 11 Late 2022"]
[White "Buchenau, Frank"]
[Black "Prieto Aranguren, Alain"]
[WhiteFideId "4604350"]
[BlackFideId "2268906"]
[WhiteElo "2157"]
[BlackElo "2209"]
[Result "0-1"]
[Round "07"]
[TimeControl "180+1"]
[Date "2022.10.12"]
[WhiteClock "0:00:05"]
[BlackClock "0:00:34"]

1. e4 {[%clk 0:03:00]}  e5 {[%clk 0:02:59]} 2. Bc4 {[%clk 0:03:00]}  c6 {[%clk 0:02:57]} 3. d4 {[%clk 0:02:59]}  Qh4 {[%clk 0:02:51]} 4. Nc3 {[%clk 0:02:31]}  d5 {[%clk 0:02:51]} 5. exd5 {[%clk 0:02:28]}  Qxd4 {[%clk 0:02:46]} 6. Qe2 {[%clk 0:02:17]}  Bb4 {[%clk 0:02:43]} 7. Nf3 {[%clk 0:02:02]}  Bxc3+ {[%clk 0:02:39]} 8. Kf1 {[%clk 0:02:02]}  Qc5 {[%clk 0:02:27]} 9. bxc3 {[%clk 0:02:01]}  Ne7 {[%clk 0:02:18]} 10. Nxe5 {[%clk 0:01:31]}  cxd5 {[%clk 0:02:13]} 11. Bb5+ {[%clk 0:01:19]}  Nbc6 {[%clk 0:02:11]} 12. a4 {[%clk 0:01:05]}  O-O {[%clk 0:02:05]} 13. Ba3 {[%clk 0:01:05]}  Qxc3 {[%clk 0:01:59]} 14. Qe1 {[%clk 0:00:52]}  Qxe1+ {[%clk 0:01:59]} 15. Rxe1 {[%clk 0:00:53]}  Rd8 {[%clk 0:01:39]} 16. f3 {[%clk 0:00:31]}  Be6 {[%clk 0:01:36]} 17. Kf2 {[%clk 0:00:30]}  Rdc8 {[%clk 0:01:28]} 18. Nd3 {[%clk 0:00:25]}  Nf5 {[%clk 0:01:24]} 19. Nf4 {[%clk 0:00:24]}  Nfd4 {[%clk 0:01:22]} 20. Nxe6 {[%clk 0:00:22]}  fxe6 {[%clk 0:01:20]} 21. Bd3 {[%clk 0:00:20]}  e5 {[%clk 0:01:11]} 22. c3 {[%clk 0:00:17]}  Ne6 {[%clk 0:01:06]} 23. Bf5 {[%clk 0:00:15]}  Kf7 {[%clk 0:01:05]} 24. f4 {[%clk 0:00:12]}  e4 {[%clk 0:01:01]} 25. g4 {[%clk 0:00:11]}  Kf6 {[%clk 0:01:00]} 26. Bb2 {[%clk 0:00:06]}  g6 {[%clk 0:00:58]} 27. c4+ {[%clk 0:00:05]}  Kf7 {[%clk 0:00:39]} 28. cxd5 {[%clk 0:00:05]}  gxf5 {[%clk 0:00:38]} 29. dxe6+ {[%clk 0:00:05]}  Kxe6 {[%clk 0:00:38]} 30. gxf5+ {[%clk 0:00:06]}  Kxf5 {[%clk 0:00:38]} 31. Rhg1 {[%clk 0:00:05]}  h6 {[%clk 0:00:35]} 32. Rg7 {[%clk 0:00:04]}  Nb4 {[%clk 0:00:35]} 33. Rf7+ {[%clk 0:00:05]}  Ke6 {[%clk 0:00:33]} 34. Rf6+ {[%clk 0:00:05]}  Ke7 {[%clk 0:00:34]} 0-1


[Site "https://www.chess.com"]

[Event "Titled Tuesday Blitz October 11 Late 2022"]
[White "Carlsen, Magnus"]
[Black "Fedoseev, Vladimir"]
[WhiteFideId "1503014"]
[BlackFideId "24130737"]
[WhiteElo "2830"]
[BlackElo "2726"]
[Result "1-0"]
[Round "07"]
[TimeControl "180+1"]
[Date "2022.10.11"]
[WhiteClock "0:01:57"]
[BlackClock "0:00:15"]

1. g4 {[%clk 0:02:53]}  Na6 {[%clk 0:02:54]} 2. Bg2 {[%clk 0:02:46]}  c6 {[%clk 0:02:52]} 3. d4 {[%clk 0:02:45]}  d5 {[%clk 0:02:51]} 4. h3 {[%clk 0:02:46]}  g6 {[%clk 0:02:43]} 5. c4 {[%clk 0:02:44]}  dxc4 {[%clk 0:02:40]} 6. Nc3 {[%clk 0:02:43]}  Bg7 {[%clk 0:02:38]} 7. Nf3 {[%clk 0:02:43]}  Nf6 {[%clk 0:02:35]} 8. O-O {[%clk 0:02:42]}  O-O {[%clk 0:02:34]} 9. a3 {[%clk 0:02:43]}  Nd5 {[%clk 0:02:31]} 10. e4 {[%clk 0:02:42]}  Nxc3 {[%clk 0:02:29]} 11. bxc3 {[%clk 0:02:43]}  e5 {[%clk 0:02:18]} 12. Nxe5 {[%clk 0:02:36]}  Bxe5 {[%clk 0:01:37]} 13. dxe5 {[%clk 0:02:37]}  Qxd1 {[%clk 0:01:37]} 14. Rxd1 {[%clk 0:02:37]}  Nc5 {[%clk 0:01:37]} 15. f4 {[%clk 0:02:29]}  g5 {[%clk 0:01:27]} 16. f5 {[%clk 0:02:21]}  h6 {[%clk 0:01:19]} 17. Rd6 {[%clk 0:02:20]}  Kg7 {[%clk 0:00:58]} 18. Be3 {[%clk 0:02:19]}  Nd3 {[%clk 0:00:56]} 19. Bf1 {[%clk 0:02:13]}  Nxe5 {[%clk 0:00:49]} 20. Bd4 {[%clk 0:02:13]}  f6 {[%clk 0:00:46]} 21. Bxe5 {[%clk 0:02:13]}  fxe5 {[%clk 0:00:46]} 22. Rg6+ {[%clk 0:02:12]}  Kh7 {[%clk 0:00:43]} 23. Rd1 {[%clk 0:02:13]}  b5 {[%clk 0:00:37]} 24. Rdd6 {[%clk 0:02:12]}  Rf7 {[%clk 0:00:32]} 25. Rxh6+ {[%clk 0:02:12]}  Kg8 {[%clk 0:00:31]} 26. h4 {[%clk 0:01:59]}  gxh4 {[%clk 0:00:18]} 27. g5 {[%clk 0:02:00]}  Bxf5 {[%clk 0:00:17]} 28. exf5 {[%clk 0:02:00]}  Rxf5 {[%clk 0:00:18]} 29. Rdg6+ {[%clk 0:01:59]}  Kf7 {[%clk 0:00:18]} 30. Bh3 {[%clk 0:02:00]}  Rf3 {[%clk 0:00:17]} 31. Be6+ {[%clk 0:01:59]}  Ke7 {[%clk 0:00:17]} 32. Rh7+ {[%clk 0:01:58]}  Ke8 {[%clk 0:00:15]} 33. Rg8+ {[%clk 0:01:57]} 1-0


[Site "https://www.chess.com"]

[Event "Titled Tuesday Blitz October 11 Late 2022"]
[White "D`Arruda, Ricardo D."]
[Black "Torres Boch, Jose Francisco"]
[WhiteFideId "100692"]
[BlackFideId "2278383"]
[WhiteElo "2439"]
[BlackElo "2073"]
[Result "0-1"]
[Round "07"]
[TimeControl "180+1"]
[Date "2022.10.12"]
[WhiteClock "0:00:50"]
[BlackClock "0:00:54"]

1. Nf3 {[%clk 0:02:46]}  Nf6 {[%clk 0:02:59]} 2. d4 {[%clk 0:02:46]}  e6 {[%clk 0:02:59]} 3. c4 {[%clk 0:02:44]}  b6 {[%clk 0:02:57]} 4. Nc3 {[%clk 0:02:44]}  Bb7 {[%clk 0:02:41]} 5. Bg5 {[%clk 0:02:44]}  h6 {[%clk 0:02:22]} 6. Bh4 {[%clk 0:02:42]}  Be7 {[%clk 0:02:16]} 7. e3 {[%clk 0:02:40]}  O-O {[%clk 0:02:04]} 8. Bd3 {[%clk 0:02:40]}  c5 {[%clk 0:02:00]} 9. O-O {[%clk 0:02:35]}  Nc6 {[%clk 0:02:00]} 10. a3 {[%clk 0:02:31]}  cxd4 {[%clk 0:01:52]} 11. exd4 {[%clk 0:02:27]}  d5 {[%clk 0:01:53]} 12. cxd5 {[%clk 0:02:09]}  Nxd5 {[%clk 0:01:50]} 13. Bxe7 {[%clk 0:02:09]}  Ncxe7 {[%clk 0:01:46]} 14. Qd2 {[%clk 0:02:03]}  Rc8 {[%clk 0:01:41]} 15. Ne5 {[%clk 0:02:00]}  Nxc3 {[%clk 0:01:33]} 16. bxc3 {[%clk 0:02:00]}  Qd5 {[%clk 0:01:32]} 17. f3 {[%clk 0:01:56]}  Qa5 {[%clk 0:01:29]} 18. Rfd1 {[%clk 0:01:51]}  Qxc3 {[%clk 0:01:27]} 19. Qf2 {[%clk 0:01:45]}  Rfd8 {[%clk 0:01:26]} 20. h3 {[%clk 0:01:32]}  Kf8 {[%clk 0:01:15]} 21. Bb5 {[%clk 0:01:23]}  Nd5 {[%clk 0:01:07]} 22. Qh4 {[%clk 0:01:14]}  Qe3+ {[%clk 0:01:05]} 23. Kh1 {[%clk 0:01:11]}  Qf4 {[%clk 0:01:03]} 24. Qf2 {[%clk 0:01:03]}  Nc3 {[%clk 0:01:01]} 25. Bd7 {[%clk 0:00:54]}  Nxd1 {[%clk 0:00:59]} 26. Rxd1 {[%clk 0:00:54]}  Rc7 {[%clk 0:00:55]} 27. Bb5 {[%clk 0:00:52]}  Rc1 {[%clk 0:00:54]} 28. Rxc1 {[%clk 0:00:52]}  Qxc1+ {[%clk 0:00:54]} 29. Kh2 {[%clk 0:00:52]}  Qf4+ {[%clk 0:00:55]} 30. Kh1 {[%clk 0:00:50]}  Qxd4 {[%clk 0:00:54]} 0-1


[Site "https://www.chess.com"]

[Event "Titled Tuesday Blitz October 11 Late 2022"]
[White "Floresvillar Gonzalez, Luis Migu"]
[Black "Stanisz, Patryk"]
[WhiteFideId "5100542"]
[BlackFideId "1123106"]
[WhiteElo "2040"]
[BlackElo "2069"]
[Result "0-1"]
[Round "07"]
[TimeControl "180+1"]
[Date "2022.10.12"]
[WhiteClock "0:00:50"]
[BlackClock "0:01:39"]

1. d4 {[%clk 0:02:57]}  d5 {[%clk 0:02:59]} 2. c3 {[%clk 0:02:56]}  Nf6 {[%clk 0:02:59]} 3. Bf4 {[%clk 0:02:56]}  c5 {[%clk 0:02:59]} 4. e3 {[%clk 0:02:55]}  Nc6 {[%clk 0:02:59]} 5. Bd3 {[%clk 0:02:55]}  e6 {[%clk 0:02:56]} 6. Nf3 {[%clk 0:02:54]}  cxd4 {[%clk 0:02:55]} 7. exd4 {[%clk 0:02:54]}  Nh5 {[%clk 0:02:55]} 8. Be3 {[%clk 0:02:47]}  Bd6 {[%clk 0:02:50]} 9. Nbd2 {[%clk 0:02:43]}  Nf4 {[%clk 0:02:49]} 10. Bf1 {[%clk 0:02:39]}  O-O {[%clk 0:02:44]} 11. g3 {[%clk 0:02:39]}  Ng6 {[%clk 0:02:42]} 12. h4 {[%clk 0:02:39]}  e5 {[%clk 0:02:36]} 13. h5 {[%clk 0:02:39]}  Nge7 {[%clk 0:02:36]} 14. dxe5 {[%clk 0:02:33]}  Nxe5 {[%clk 0:02:35]} 15. Nxe5 {[%clk 0:02:33]}  Bxe5 {[%clk 0:02:36]} 16. Nf3 {[%clk 0:02:33]}  Bf6 {[%clk 0:02:27]} 17. Bg2 {[%clk 0:02:31]}  Nf5 {[%clk 0:02:26]} 18. Bd4 {[%clk 0:02:21]}  Nxd4 {[%clk 0:02:25]} 19. Nxd4 {[%clk 0:02:19]}  Re8+ {[%clk 0:02:25]} 20. Kf1 {[%clk 0:02:18]}  Be6 {[%clk 0:02:19]} 21. h6 {[%clk 0:02:15]}  g6 {[%clk 0:02:19]} 22. Qd3 {[%clk 0:02:11]}  a6 {[%clk 0:02:17]} 23. Re1 {[%clk 0:02:10]}  Rc8 {[%clk 0:02:08]} 24. Nxe6 {[%clk 0:02:07]}  fxe6 {[%clk 0:02:09]} 25. Bh3 {[%clk 0:02:06]}  Qd6 {[%clk 0:02:08]} 26. Kg2 {[%clk 0:02:00]}  Rc7 {[%clk 0:02:08]} 27. Re2 {[%clk 0:01:59]}  Rce7 {[%clk 0:02:07]} 28. Rhe1 {[%clk 0:01:58]}  e5 {[%clk 0:02:08]} 29. Rd1 {[%clk 0:01:55]}  Rd8 {[%clk 0:02:07]} 30. Red2 {[%clk 0:01:54]}  Bg5 {[%clk 0:02:05]} 31. f4 {[%clk 0:01:37]}  exf4 {[%clk 0:02:03]} 32. Qxd5+ {[%clk 0:01:37]}  Qxd5+ {[%clk 0:02:03]} 33. Rxd5 {[%clk 0:01:37]}  Rxd5 {[%clk 0:02:02]} 34. Rxd5 {[%clk 0:01:36]}  Bxh6 {[%clk 0:02:03]} 35. gxf4 {[%clk 0:01:33]}  Bxf4 {[%clk 0:02:00]} 36. Kf3 {[%clk 0:01:29]}  g5 {[%clk 0:01:58]} 37. Rd7 {[%clk 0:01:27]}  Re3+ {[%clk 0:01:55]} 38. Kg2 {[%clk 0:01:26]}  Rg3+ {[%clk 0:01:55]} 39. Kf2 {[%clk 0:01:20]}  Rxh3 {[%clk 0:01:54]} 40. Rxb7 {[%clk 0:01:20]}  Rh2+ {[%clk 0:01:55]} 41. Kf3 {[%clk 0:01:19]}  h5 {[%clk 0:01:54]} 42. Ra7 {[%clk 0:01:12]}  Rxb2 {[%clk 0:01:49]} 43. Rxa6 {[%clk 0:01:11]}  h4 {[%clk 0:01:49]} 44. a4 {[%clk 0:01:02]}  h3 {[%clk 0:01:47]} 45. Rh6 {[%clk 0:01:02]}  h2 {[%clk 0:01:47]} 46. a5 {[%clk 0:01:00]}  Rc2 {[%clk 0:01:44]} 47. a6 {[%clk 0:00:58]}  Rxc3+ {[%clk 0:01:43]} 48. Kg2 {[%clk 0:00:58]}  Rc2+ {[%clk 0:01:43]} 49. Kh1 {[%clk 0:00:56]}  Rc1+ {[%clk 0:01:42]} 50. Kg2 {[%clk 0:00:56]}  Kg7 {[%clk 0:01:39]} 51. Rh5 {[%clk 0:00:53]}  Rg1+ {[%clk 0:01:39]} 52. Kf3 {[%clk 0:00:51]}  h1=Q+ {[%clk 0:01:38]} 53. Rxh1 {[%clk 0:00:50]}  Rxh1 {[%clk 0:01:39]} 54. a7 {[%clk 0:00:50]} 0-1


[Site "https://www.chess.com"]